bitfinex/quotes_BTCUSD_20220211
["timestamp","ask_amount","ask_price","bid_price","bid_amount"]
[1644592494005,0.00069313,43664.0,43661.0,0.25622636]
[1644592494310,0.00069313,43664.0,43663.0,0.322424]
[1644592494506,0.00069313,43664.0,43663.0,0.68362697]
[1644592494705,0.00025691,43667.0,43663.0,0.82582697]
[1644592494903,0.4661788,43677.0,43663.0,0.82582697]
[1644592494904,0.00025691,43668.0,43663.0,0.82582697]
[1644592495103,0.00069312,43666.0,43664.0,0.5]
[1644592495303,0.00069312,43666.0,43665.0,0.322424]
[1644592495804,0.00069312,43666.0,43665.0,0.28257832]
[1644592496045,0.05753783,43673.0,43665.0,0.28257832]
[1644592496245,0.36681153,43677.0,43666.0,0.57614695]
[1644592496246,0.00069311,43668.0,43666.0,0.57614695]
[1644592496445,0.00069311,43668.0,43667.0,0.6087857]
[1644592496652,0.00069311,43668.0,43667.0,1.1087857]
[1644592496848,0.00069311,43668.0,43667.0,0.8863617]
[1644592497046,0.00069311,43668.0,43667.0,1.2087857]
[1644592497246,0.05727653,43669.0,43667.0,1.1087857]
[1644592497447,0.05727653,43669.0,43668.0,0.28201873]
[1644592497845,0.05727653,43669.0,43668.0,0.60444273]
[1644592498050,0.05727653,43669.0,43668.0,0.28201873]
[1644592498448,0.05727653,43669.0,43667.0,0.822424]
[1644592499447,0.00025691,43670.0,43667.0,1.25091049]
[1644592499712,0.00025691,43671.0,43668.0,0.322424]
[1644592499905,0.00069483,43670.0,43668.0,0.422424]
[1644592500305,0.00069483,43670.0,43668.0,0.322424]
[1644592500608,0.00069483,43670.0,43669.0,0.2906489]
[1644592500806,0.05727677,43672.0,43669.0,0.5]
[1644592501006,0.00069482,43671.0,43669.0,0.5]
[1644592501711,0.17255405,43671.0,43669.0,0.5]
[1644592501911,0.17185923,43671.0,43669.0,0.5]
[1644592502109,0.22185923,43671.0,43659.0,0.8]
[1644592502307,0.05728925,43668.0,43659.0,0.5]
[1644592502506,0.45345548,43668.0,43659.0,0.5]
[1644592502708,0.50345548,43668.0,43659.0,0.5]
[1644592502908,0.11457607,43666.0,43659.0,0.5]
[1644592503113,0.057287,43664.0,43659.0,0.5]
[1644592503553,0.11457369,43664.0,43659.0,0.5]
[1644592503752,0.05728669,43664.0,43659.0,0.5]
[1644592504552,0.05798156,43664.0,43659.0,0.5]
[1644592505556,0.24493658,43664.0,43659.0,0.5]
[1644592505759,0.24563145,43664.0,43659.0,0.5]
[1644592505956,0.05798156,43664.0,43659.0,0.5]
[1644592506158,0.11483298,43666.0,43664.0,0.17324981]
[1644592506159,0.00025691,43666.0,43664.0,0.17324981]
[1644592506360,0.00277879,43674.0,43665.0,0.322424]
[1644592506361,0.00025691,43669.0,43665.0,0.322424]
[1644592506556,0.11481491,43673.0,43665.0,0.322424]
[1644592506757,0.18900859,43682.0,43666.0,1.1]
[1644592506958,0.15653297,43685.0,43680.0,0.39465637]
[1644592507207,0.01,43689.0,43684.0,0.05]
[1644592507399,0.01,43689.0,43685.0,0.622424]
[1644592507598,0.01,43689.0,43686.0,0.3]
[1644592507799,0.01,43689.0,43687.0,0.322424]
[1644592508098,0.01,43689.0,43688.0,0.67831251]
[1644592508303,0.01,43689.0,43688.0,1.10073651]
[1644592508504,0.01,43689.0,43688.0,1.90073651]
[1644592508699,0.05,43702.0,43690.0,0.436895]
[1644592508906,0.005,43699.0,43695.0,0.05]
[1644592509105,0.005,43699.0,43697.0,0.27688308]
[1644592509300,0.005,43699.0,43697.0,1.01394848]
[1644592509502,0.005,43699.0,43698.0,0.5]
[1644592510948,0.005,43699.0,43698.0,0.822424]
[1644592511644,0.005,43699.0,43698.0,0.5]
[1644592512246,0.055,43699.0,43698.0,0.5]
[1644592512443,0.253772,43700.0,43698.0,0.5]
[1644592512444,0.56275687,43700.0,43698.0,0.5]
[1644592512844,0.164502,43700.0,43698.0,0.5]
[1644592514044,0.24933199,43700.0,43698.0,0.5]
[1644592514245,0.05,43699.0,43697.0,0.12969234]
[1644592514445,0.11450656,43695.0,43684.0,0.76169677]
[1644592514897,0.56492666,43694.0,43684.0,0.76169677]
[1644592515298,0.66492666,43694.0,43684.0,0.76169677]
[1644592515498,0.05794247,43692.0,43684.0,0.76169677]
[1644592515698,0.00068547,43692.0,43684.0,0.5]
[1644592516098,0.00068547,43692.0,43685.0,0.29332426]
[1644592516301,0.00068547,43692.0,43686.0,0.322424]
[1644592516501,0.10725356,43695.0,43686.0,0.822424]
[1644592516502,0.1,43695.0,43686.0,0.822424]
[1644592516698,0.057243,43699.0,43688.0,0.322424]
[1644592516699,0.00068548,43690.0,43688.0,0.322424]
[1644592517099,0.00068548,43690.0,43686.0,0.5]
[1644592517598,0.40522589,43697.0,43686.0,0.5]
[1644592517599,0.40248437,43697.0,43686.0,0.5]
[1644592517799,0.00069594,43690.0,43686.0,0.5]
[1644592518203,0.00069594,43690.0,43688.0,0.34795535]
[1644592518445,0.00069594,43690.0,43688.0,0.322424]
[1644592518645,0.00069594,43690.0,43688.0,0.822424]
[1644592518850,0.05,43694.0,43689.0,0.322424]
[1644592518851,0.057249,43693.0,43689.0,0.322424]
[1644592519048,0.00069593,43691.0,43689.0,0.322424]
[1644592519647,0.00069593,43691.0,43690.0,0.58180868]
[1644592519847,0.00069593,43691.0,43690.0,0.25938468]
[1644592520146,0.26133794,43698.0,43690.0,0.25938468]
[1644592520348,0.00069592,43693.0,43690.0,0.25938468]
[1644592520752,0.00069592,43693.0,43691.0,0.822424]
[1644592520948,0.00069592,43693.0,43692.0,0.25997615]
[1644592521148,0.00069592,43693.0,43691.0,0.5]
[1644592521352,0.057246,43695.0,43691.0,0.5]
[1644592521353,0.05725,43694.0,43691.0,0.5]
[1644592521550,0.057263,43693.0,43691.0,0.5]
[1644592521950,0.11452,43693.0,43691.0,0.5]
[1644592522223,0.16452,43693.0,43691.0,0.5]
[1644592522817,0.05,43692.0,43691.0,0.5]
[1644592523017,0.05,43693.0,43690.0,0.58180868]
[1644592523220,0.05025758,43693.0,43690.0,1.08180868]
[1644592523418,0.05,43693.0,43690.0,1.08180868]
[1644592523616,0.05,43693.0,43690.0,0.58180868]
[1644592524218,0.11520491,43694.0,43690.0,0.58180868]
[1644592524219,0.16520491,43694.0,43690.0,0.58180868]
[1644592524517,0.16546249,43694.0,43691.0,0.322424]
[1644592524719,0.16520491,43694.0,43691.0,0.322424]
[1644592524917,0.164509,43694.0,43692.0,0.25938468]
[1644592525118,0.16520543,43694.0,43692.0,0.58180868]
[1644592525517,0.11520543,43694.0,43692.0,0.58180868]
[1644592525717,0.16520543,43694.0,43692.0,0.58180868]
[1644592525955,0.41318527,43694.0,43692.0,0.25938468]
[1644592526153,0.45538527,43694.0,43692.0,0.25938468]
[1644592526354,0.55538527,43694.0,43692.0,0.25938468]
[1644592526953,0.37123038,43694.0,43692.0,0.25938468]
[1644592527155,0.37123038,43694.0,43692.0,0.58180868]
[1644592527555,0.156709,43694.0,43692.0,0.58180868]
[1644592527755,0.05794898,43695.0,43692.0,0.93283742]
[1644592527756,0.00069643,43695.0,43692.0,0.93283742]
[1644592527956,0.00069643,43695.0,43693.0,0.322424]
[1644592528156,0.00069643,43695.0,43692.0,0.25938468]
[1644592528357,0.24014091,43695.0,43692.0,0.25938468]
[1644592528555,0.08,43694.0,43692.0,0.25938468]
[1644592528957,0.13,43694.0,43692.0,0.25938468]
[1644592529158,0.59814195,43693.0,43692.0,0.25938468]
[1644592530199,0.59814195,43693.0,43692.0,0.58180868]
[1644592530597,0.87871882,43693.0,43692.0,0.58180868]
[1644592530798,0.87871882,43693.0,43692.0,0.25938468]
[1644592530997,0.59814195,43693.0,43692.0,0.25938468]
[1644592531196,0.52577128,43693.0,43692.0,0.25938468]
[1644592531399,0.08,43691.0,43676.0,0.3793944]
[1644592531599,0.08,43691.0,43675.0,0.3739]
[1644592531600,0.08,43683.0,43675.0,0.3739]
[1644592531804,0.08,43683.0,43670.0,0.30511312]
[1644592531805,0.08,43682.0,43670.0,0.30511312]
[1644592532199,0.08,43678.0,43672.0,0.0006963]
[1644592532400,0.08,43676.0,43672.0,0.0006963]
[1644592532598,0.08,43675.0,43672.0,0.0006963]
[1644592532800,0.137275,43674.0,43673.0,0.322424]
[1644592532999,0.137275,43674.0,43672.0,0.3231203]
[1644592533198,0.13,43673.0,43672.0,0.28299769]
[1644592533456,0.18,43673.0,43672.0,0.28299769]
[1644592533654,0.18,43673.0,43671.0,0.00069625]
[1644592533853,0.2258,43673.0,43672.0,0.322424]
[1644592534362,0.2758,43673.0,43671.0,0.00069625]
[1644592534554,0.2758,43673.0,43664.0,0.17324981]
[1644592534555,0.057295,43671.0,43664.0,0.17324981]
[1644592534755,0.07976003,43668.0,43664.0,0.50542714]
[1644592534953,0.07976003,43668.0,43664.0,0.17324981]
[1644592534954,0.12556003,43668.0,43664.0,0.17324981]
[1644592535154,0.07976003,43667.0,43664.0,0.17324981]
[1644592535353,0.13705103,43667.0,43664.0,0.17324981]
[1644592535553,0.07976003,43667.0,43664.0,0.17324981]
[1644592536054,0.07976003,43666.0,43664.0,0.17324981]
[1644592536254,0.057288,43667.0,43666.0,0.10952006]
[1644592536255,0.114583,43667.0,43666.0,0.10952006]
[1644592537204,0.057295,43667.0,43666.0,0.10952006]
[1644592537600,0.37755146,43667.0,43666.0,0.10952006]
[1644592537798,0.057295,43667.0,43666.0,0.10952006]
[1644592539001,0.44281003,43667.0,43666.0,0.10952006]
[1644592540101,0.057295,43667.0,43666.0,0.40952006]
[1644592540301,0.057291,43669.0,43666.0,0.73194406]
[1644592540503,0.057272,43671.0,43667.0,0.322424]
[1644592540808,0.00069526,43675.0,43667.0,0.422424]
[1644592541054,0.35260281,43680.0,43675.0,0.00046724]
[1644592541252,0.35234523,43680.0,43676.0,0.322424]
[1644592541551,0.25471249,43684.0,43676.0,0.322424]
[1644592541552,0.00025758,43682.0,43676.0,0.322424]
[1644592541753,0.25471249,43684.0,43676.0,0.322424]
[1644592541754,0.00025758,43680.0,43676.0,0.322424]
[1644592541954,0.64890239,43689.0,43676.0,0.322424]
[1644592541955,0.057269,43679.0,43676.0,0.322424]
[1644592542157,0.00025758,43688.0,43676.0,0.422424]
[1644592542352,0.05,43692.0,43678.0,0.322424]
[1644592542353,0.00025758,43681.0,43678.0,0.322424]
[1644592542551,0.1238,43694.0,43677.0,0.3]
[1644592542552,0.30730341,43682.0,43677.0,0.3]
[1644592542753,0.30730341,43682.0,43675.0,0.00038796]
[1644592543053,0.28660458,43679.0,43678.0,0.322424]
[1644592543252,0.34387258,43679.0,43678.0,0.322424]
[1644592543652,0.114536,43679.0,43678.0,0.322424]
[1644592543852,0.114536,43679.0,43676.0,0.322424]
[1644592544711,0.078008,43678.0,43676.0,0.322424]
[1644592544903,0.078008,43678.0,43675.0,0.00038796]
[1644592545300,0.114536,43679.0,43675.0,0.00038796]
[1644592545700,0.11523131,43679.0,43675.0,0.00038796]
[1644592546102,0.0458,43678.0,43675.0,0.00038796]
[1644592546300,0.07329989,43677.0,43675.0,0.00038796]
[1644592546503,0.0458,43676.0,43675.0,0.00038796]
[1644592546702,0.12146651,43670.0,43666.0,0.10952006]
[1644592546903,0.0458,43669.0,43666.0,0.10952006]
[1644592547101,0.103095,43669.0,43666.0,0.10952006]
[1644592547305,0.31005299,43668.0,43666.0,0.10952006]
[1644592547502,0.0458,43667.0,43666.0,0.10952006]
[1644592550961,0.0414,43667.0,43666.0,0.11062006]
[1644592551160,0.0414,43667.0,43666.0,0.1679108]
[1644592552059,0.0414,43667.0,43666.0,0.11062006]
[1644592552501,0.0414,43667.0,43666.0,0.10062006]
[1644592552896,0.23550684,43667.0,43666.0,0.10062006]
[1644592553100,0.72688591,43667.0,43664.0,0.08180365]
[1644592553299,0.114621,43666.0,43664.0,0.08180365]
[1644592553499,0.3809982,43665.0,43664.0,0.08180365]
[1644592553698,0.3809982,43665.0,43664.0,0.08111003]
[1644592553699,0.4309982,43665.0,43664.0,0.08111003]
[1644592553900,1.05,43664.0,43663.0,0.00069363]
[1644592554098,1.47225693,43664.0,43663.0,0.00069363]
[1644592554499,1.153108,43664.0,43663.0,0.00069363]
[1644592554700,0.103108,43664.0,43663.0,0.00069363]
[1644592555003,0.47861368,43664.0,43661.0,0.00068491]
[1644592555800,0.52861368,43664.0,43661.0,0.00068491]
[1644592556050,0.52861368,43664.0,43659.0,0.0011]
[1644592556249,0.52861368,43664.0,43660.0,0.00068492]
[1644592556450,0.317725,43664.0,43660.0,0.00068492]
[1644592556649,0.343824,43663.0,43660.0,0.00068492]
[1644592556851,0.47535253,43662.0,43660.0,0.00068492]
[1644592557350,0.057304,43661.0,43659.0,0.0011]
[1644592557654,0.0958,43660.0,43659.0,0.00178492]
[1644592557849,0.41282566,43660.0,43647.0,0.00604042]
[1644592558051,0.05,43656.0,43647.0,0.00604042]
[1644592558251,0.12801343,43655.0,43648.0,0.0022]
[1644592558650,0.18532943,43655.0,43648.0,0.0022]
[1644592559707,0.24882158,43653.0,43648.0,0.0022]
[1644592559901,0.10312,43652.0,43648.0,0.0022]
[1644592560307,0.10312,43652.0,43647.0,0.0022]
[1644592560308,1.05,43650.0,43647.0,0.0022]
[1644592560503,1.39172481,43653.0,43643.0,0.0022]
[1644592560504,0.07231912,43646.0,43643.0,0.0022]
[1644592560704,0.0458,43645.0,43643.0,0.0022]
[1644592560906,0.0458,43645.0,43643.0,0.0011]
[1644592561108,1.05,43644.0,43640.0,0.0011]
[1644592561302,0.0458,43643.0,43635.0,0.0011]
[1644592561504,0.057337,43642.0,43635.0,0.0011]
[1644592561702,0.0458,43641.0,43635.0,0.0011]
[1644592562104,0.26097664,43638.0,43635.0,0.0011]
[1644592562302,0.30677664,43638.0,43637.0,0.0028924]
[1644592563107,0.0458,43638.0,43637.0,0.0028924]
[1644592563304,0.0458,43638.0,43637.0,0.0022]
[1644592563556,0.35741417,43638.0,43637.0,0.0022]
[1644592563753,0.0458,43638.0,43637.0,0.0022]
[1644592567404,0.49542452,43639.0,43638.0,0.09159999]
[1644592567605,0.114674,43639.0,43638.0,0.09159999]
[1644592567807,0.057324,43642.0,43638.0,0.46402399]
[1644592568011,0.05,43653.0,43639.0,0.622424]
[1644592568206,0.42,43646.0,43639.0,0.622424]
[1644592568404,0.42,43646.0,43640.0,0.315302]
[1644592568606,0.42,43646.0,43640.0,0.37261476]
[1644592568806,0.42,43646.0,43640.0,0.52261476]
[1644592569005,0.42,43646.0,43640.0,0.10731276]
[1644592569205,0.47732,43646.0,43640.0,0.10731276]
[1644592569605,0.057314,43645.0,43640.0,0.10731276]
[1644592569805,0.1,43656.0,43640.0,0.10731276]
[1644592570007,0.72085279,43667.0,43645.0,0.05]
[1644592570008,0.229296,43662.0,43645.0,0.05]
[1644592570209,0.00045551,43669.0,43652.0,0.10729846]
[1644592570407,0.50045551,43669.0,43653.0,0.295]
[1644592570609,0.057293,43665.0,43653.0,0.295]
[1644592570806,0.35129998,43664.0,43654.0,0.38378028]
[1644592571054,0.35129998,43664.0,43656.0,0.322424]
[1644592571356,0.35129998,43664.0,43657.0,0.05729148]
[1644592571357,0.27998912,43662.0,43657.0,0.05729148]
[1644592571555,0.27998912,43662.0,43658.0,0.322424]
[1644592571855,0.114599,43662.0,43657.0,0.05729148]
[1644592572054,0.114599,43662.0,43657.0,0.05798395]
[1644592572555,0.08798399,43659.0,43657.0,0.05798395]
[1644592572759,0.164599,43662.0,43648.0,0.17189536]
[1644592572760,0.0854079,43650.0,43648.0,0.17189536]
[1644592573058,0.0854079,43650.0,43637.0,0.0022]
[1644592573059,0.31008615,43650.0,43642.0,0.5]
[1644592573260,0.18700405,43648.0,43643.0,0.05732446]
[1644592573654,0.37769153,43647.0,43643.0,0.05732446]
[1644592573854,0.0458,43647.0,43642.0,0.5]
[1644592574055,0.114648,43650.0,43638.0,0.47058262]
[1644592574454,0.114648,43650.0,43642.0,0.10731393]
[1644592574899,0.27184029,43647.0,43642.0,0.10731393]
[1644592575300,0.42,43649.0,43642.0,0.10731393]
[1644592575301,0.057319,43648.0,43642.0,0.10731393]
[1644592575500,0.28641951,43644.0,43642.0,0.10731393]
[1644592576200,0.57248217,43644.0,43642.0,0.10731393]
[1644592576401,0.28641951,43644.0,43642.0,0.10731393]
[1644592578102,0.057315,43646.0,43642.0,0.10731393]
[1644592578558,0.08,43645.0,43642.0,0.10731393]
[1644592578758,0.08,43645.0,43643.0,0.29347004]
[1644592578958,0.08,43645.0,43642.0,0.10731393]
[1644592580558,0.08,43644.0,43642.0,0.10731393]
[1644592581960,0.1580137,43643.0,43642.0,0.10731393]
[1644592582209,0.1580137,43643.0,43641.0,0.00069255]
[1644592582404,0.08,43642.0,43641.0,0.00069255]
[1644592582603,0.08,43642.0,43640.0,0.05732244]
[1644592582803,0.08,43642.0,43640.0,0.058015]
[1644592583804,0.08,43642.0,43641.0,0.31605525]
[1644592584007,0.08,43642.0,43641.0,0.63847925]
[1644592584206,0.08,43642.0,43641.0,1.19073458]
[1644592584406,0.42,43659.0,43647.0,0.05729701]
[1644592584605,0.42,43659.0,43646.0,0.11459402]
[1644592584806,0.42,43659.0,43647.0,0.05]
[1644592585006,0.477298,43659.0,43648.0,0.9054397]
[1644592585206,0.22942879,43661.0,43655.0,0.31019182]
[1644592585404,0.22942879,43661.0,43656.0,0.322424]
[1644592585405,0.00069234,43660.0,43656.0,0.322424]
[1644592585606,0.00069234,43660.0,43656.0,0.37971154]
[1644592585805,0.00069234,43660.0,43658.0,0.322424]
[1644592586049,0.00069234,43660.0,43658.0,0.372424]
[1644592586253,0.29799875,43664.0,43659.0,0.322424]
[1644592586652,0.0006924,43661.0,43659.0,0.322424]
[1644592586851,0.0006924,43661.0,43659.0,0.37971297]
[1644592587051,0.0006924,43661.0,43660.0,0.322424]
[1644592587450,0.35211183,43662.0,43660.0,0.322424]
[1644592587650,0.35211183,43662.0,43661.0,0.322424]
[1644592587850,0.35211183,43662.0,43659.0,0.05]
[1644592588051,0.40211183,43662.0,43655.0,0.00069251]
[1644592588251,0.06663364,43660.0,43655.0,0.00069251]
[1644592588654,0.06663364,43660.0,43648.0,0.5]
[1644592588857,0.32152037,43649.0,43644.0,0.364]
[1644592589052,0.32152037,43649.0,43646.0,0.11461861]
[1644592589253,0.37152037,43649.0,43646.0,0.11461861]
[1644592589453,0.05,43649.0,43647.0,0.05730872]
[1644592589709,0.0506924,43660.0,43647.0,0.05730872]
[1644592589901,0.275022,43674.0,43647.0,0.05730872]
[1644592589902,0.0573,43658.0,43647.0,0.05730872]
[1644592590506,0.1079923,43660.0,43652.0,0.05729968]
[1644592590507,0.33017744,43657.0,43652.0,0.05729968]
[1644592590702,0.38017744,43657.0,43652.0,0.10729968]
[1644592591304,0.38017744,43657.0,43652.0,0.10799217]
[1644592591705,0.24855843,43655.0,43652.0,0.10799217]
[1644592591906,0.24855843,43655.0,43653.0,0.322424]
[1644592592305,0.38017744,43657.0,43652.0,0.10729968]
[1644592592505,0.38017744,43657.0,43652.0,0.10799217]
[1644592592707,0.05,43657.0,43652.0,0.10799217]
[1644592592906,0.057296,43658.0,43652.0,0.10799217]
[1644592593310,0.28780606,43654.0,43652.0,0.10799217]
[1644592593555,0.28780606,43654.0,43652.0,0.10729968]
[1644592593757,0.33780606,43654.0,43653.0,0.00069249]
[1644592594059,0.05,43654.0,43653.0,0.00069249]
[1644592594655,0.05,43654.0,43652.0,0.10729968]
[1644592595158,0.2686513,43653.0,43652.0,0.10729968]
[1644592595357,0.05,43654.0,43652.0,0.10729968]
[1644592595758,0.22936981,43685.0,43652.0,0.10729968]
[1644592595759,0.00069235,43660.0,43653.0,0.322424]
[1644592595960,0.31343316,43668.0,43653.0,0.322424]
[1644592595961,0.05,43669.0,43653.0,0.39649605]
[1644592596161,0.00069235,43660.0,43658.0,0.322424]
[1644592596358,0.00069235,43660.0,43659.0,0.322424]
[1644592596760,0.00069235,43660.0,43659.0,0.05]
[1644592597211,0.36379312,43667.0,43659.0,0.43699381]
[1644592597501,0.00045628,43662.0,43659.0,0.16456981]
[1644592598003,0.28490918,43660.0,43659.0,0.43296295]
[1644592598203,0.25951066,43661.0,43660.0,0.23710218]
[1644592598603,0.30951066,43661.0,43660.0,0.23710218]
[1644592599402,0.36681366,43661.0,43660.0,0.23710218]
[1644592600603,1.05,43660.0,43648.0,0.28743822]
[1644592600807,1.05,43660.0,43641.0,0.1128]
[1644592600808,0.08447576,43644.0,43641.0,0.1128]
[1644592601063,0.08447576,43644.0,43641.0,0.5]
[1644592601064,0.0458,43643.0,43641.0,0.5]
[1644592601257,0.44858352,43643.0,43641.0,0.5]
[1644592601660,0.44858352,43643.0,43638.0,0.09159999]
[1644592602256,0.50591152,43643.0,43638.0,0.09159999]
[1644592603260,0.50591152,43643.0,43638.0,0.14159999]
[1644592604463,0.50591152,43643.0,43638.0,0.14229291]
[1644592604902,0.59507846,43643.0,43638.0,0.14229291]
[1644592605102,0.59507846,43643.0,43642.0,0.29682911]
[1644592605303,0.103128,43643.0,43642.0,0.29682911]
[1644592605806,0.114639,43648.0,43642.0,0.29682911]
[1644592605807,0.0458,43649.0,43644.0,0.322424]
[1644592606003,0.0458,43654.0,43642.0,0.34682911]
[1644592606204,0.30034296,43654.0,43650.0,0.34419076]
[1644592606504,0.00069262,43658.0,43650.0,0.4014955]
[1644592606704,0.164608,43663.0,43651.0,0.26601468]
[1644592606705,0.057303,43657.0,43651.0,0.26601468]
[1644592606904,0.114604,43661.0,43651.0,0.26601468]
[1644592606905,0.057303,43654.0,43651.0,0.26601468]
[1644592607304,0.00069272,43658.0,43651.0,0.26601468]
[1644592607505,0.00069272,43658.0,43653.0,0.05730061]
[1644592607506,0.39931776,43654.0,43653.0,0.05730061]
[1644592607904,0.45662176,43654.0,43653.0,0.05730061]
[1644592608552,0.057304,43654.0,43653.0,0.05730061]
[1644592609052,0.28676942,43654.0,43653.0,0.05730061]
[1644592609249,0.28676942,43654.0,43653.0,0.33830936]
[1644592609250,0.33676942,43654.0,43653.0,0.33830936]
[1644592609453,0.22946542,43654.0,43653.0,0.33830936]
[1644592609655,0.22946542,43654.0,43653.0,0.48830936]
[1644592609852,0.00069274,43658.0,43653.0,0.48830936]
[1644592610252,0.114579,43672.0,43653.0,0.48830936]
[1644592610552,0.00045676,43658.0,43653.0,0.48830936]
[1644592610753,0.00045676,43658.0,43653.0,0.38830936]
[1644592611552,0.38990108,43663.0,43653.0,0.38830936]
[1644592611753,0.00045676,43658.0,43653.0,0.38830936]
[1644592612509,0.05775276,43658.0,43653.0,0.38830936]
[1644592612705,0.05775276,43658.0,43653.0,0.10730061]
[1644592612706,0.057296,43658.0,43653.0,0.10730061]
[1644592612905,0.057296,43658.0,43653.0,0.10799377]
[1644592613104,0.32005656,43657.0,43653.0,0.10799377]
[1644592613306,0.08532671,43656.0,43653.0,0.00069316]
[1644592613904,0.37005656,43657.0,43648.0,0.55792282]
[1644592614105,0.057303,43655.0,43652.0,0.00069316]
[1644592615105,0.057303,43655.0,43653.0,0.31352589]
[1644592615306,0.057303,43655.0,43653.0,0.36352589]
[1644592615948,0.057303,43655.0,43653.0,0.10730228]
[1644592616848,0.31291204,43655.0,43653.0,0.10730228]
[1644592617050,0.057303,43655.0,43653.0,0.10730228]
[1644592619052,0.37300853,43655.0,43653.0,0.05]
[1644592619251,0.37300853,43655.0,43652.0,0.10799868]
[1644592619451,0.057303,43655.0,43652.0,0.05799868]
[1644592619914,0.057303,43655.0,43652.0,0.05730552]
[1644592620512,0.30798737,43654.0,43652.0,0.05730552]
[1644592620712,0.35798737,43654.0,43652.0,0.05730552]
[1644592621315,0.35798737,43654.0,43651.0,0.00069317]
[1644592621316,0.057307,43653.0,43651.0,0.00069317]
[1644592621715,0.06433154,43652.0,43651.0,0.00069317]
[1644592621915,0.057307,43653.0,43651.0,0.00069317]
[1644592622416,0.057307,43653.0,43650.0,0.32677887]
[1644592622620,0.057307,43653.0,43650.0,0.05069317]
[1644592622816,0.057307,43653.0,43650.0,0.00069317]
[1644592623017,0.33009006,43652.0,43650.0,0.0580006]
[1644592623218,0.19170563,43651.0,43650.0,0.00069317]
[1644592623455,0.28390563,43651.0,43650.0,0.00069317]
[1644592623653,0.06793821,43642.0,43639.0,0.3]
[1644592623852,0.12526521,43642.0,43638.0,0.09159999]
[1644592624055,0.12526521,43642.0,43641.0,0.30263246]
[1644592624253,0.17526521,43642.0,43641.0,0.30263246]
[1644592624455,0.107327,43642.0,43638.0,0.39159999]
[1644592624656,0.107327,43642.0,43638.0,0.09159999]
[1644592624855,0.107324,43641.0,43638.0,0.09159999]
[1644592625058,0.107324,43641.0,43639.0,0.00068626]
[1644592625456,0.057324,43641.0,43639.0,0.27354554]
[1644592625657,0.114632,43652.0,43639.0,0.27354554]
[1644592625658,0.4076371,43656.0,43640.0,0.35178414]
[1644592625857,0.2860371,43656.0,43652.0,0.36290364]
[1644592626057,0.2860371,43656.0,43652.0,0.0573024]
[1644592626058,0.40281962,43654.0,43652.0,0.0573024]
[1644592626859,0.40281962,43654.0,43648.0,0.05]
[1644592627059,0.56743162,43654.0,43650.0,0.05730548]
[1644592627311,0.1348618,43653.0,43648.0,0.05]
[1644592627512,0.40117116,43653.0,43649.0,0.00068621]
[1644592628310,0.50117116,43653.0,43649.0,0.00068621]
[1644592628609,0.06367748,43652.0,43649.0,0.00065459]
[1644592629110,0.057315,43652.0,43649.0,0.00065459]
[1644592629308,0.05731,43651.0,43649.0,0.00065459]
[1644592629709,0.05731,43651.0,43649.0,0.05730896]
[1644592629910,0.05731,43651.0,43648.0,0.00065459]
[1644592630213,0.05,43649.0,43648.0,0.00065459]
[1644592630516,0.0422,43649.0,43648.0,0.00065459]
[1644592630712,0.35267794,43649.0,43648.0,0.00065459]
[1644592630966,0.057318,43647.0,43646.0,0.0006546]
[1644592631366,0.38106597,43647.0,43646.0,0.0006546]
[1644592631966,0.84431717,43647.0,43638.0,0.09159999]
[1644592632167,0.171981,43643.0,43639.0,0.05]
[1644592632366,0.171981,43643.0,43638.0,0.14422735]
[1644592632569,0.221981,43643.0,43639.0,0.05732429]
[1644592632766,0.057328,43642.0,43639.0,0.05732429]
[1644592633969,0.107327,43643.0,43639.0,0.05732429]
[1644592634371,0.07412304,43640.0,43639.0,0.05732429]
[1644592634572,0.057321,43642.0,43639.0,0.05798106]
[1644592634818,0.1422,43641.0,43639.0,0.00065677]
[1644592635117,0.34957027,43640.0,43639.0,0.00065677]
[1644592635315,0.49177027,43640.0,43639.0,0.00065677]
[1644592635515,0.77465694,43640.0,43639.0,0.00065677]
[1644592635718,0.77465694,43640.0,43638.0,0.09159999]
[1644592635719,0.86657962,43640.0,43638.0,0.09159999]
[1644592636116,0.32070441,43639.0,43638.0,0.09159999]
[1644592636316,0.51290441,43639.0,43638.0,0.09159999]
[1644592636715,0.46290441,43639.0,43638.0,0.09159999]
[1644592637117,0.46290441,43639.0,43638.0,0.36776791]
[1644592637317,0.099528,43639.0,43638.0,0.36776791]
[1644592637516,0.0422,43639.0,43638.0,0.36776791]
[1644592637715,0.0422,43639.0,43638.0,0.41776791]
[1644592637916,0.37480935,43640.0,43639.0,0.08439999]
[1644592638950,0.057332,43641.0,43639.0,0.08439999]
[1644592640351,0.107332,43641.0,43639.0,0.08439999]
[1644592640752,0.286627,43645.0,43639.0,0.08439999]
[1644592640956,0.401245,43654.0,43640.0,1.35]
[1644592641156,0.05,43657.0,43640.0,1.4]
[1644592641355,0.057303,43651.0,43640.0,1.5]
[1644592641753,0.53529292,43660.0,43646.0,0.63343539]
[1644592641754,0.14929292,43660.0,43646.0,0.63343539]
[1644592641954,0.00045675,43658.0,43647.0,0.622424]
[1644592642211,0.00045675,43658.0,43647.0,0.35]
[1644592642403,0.057297,43657.0,43649.0,0.11458819]
[1644592642803,0.057297,43657.0,43650.0,0.1072941]
[1644592643005,0.22953579,43654.0,43650.0,0.1072941]
[1644592643704,0.27953579,43654.0,43650.0,0.1072941]
[1644592643905,0.33590226,43653.0,43650.0,0.1072941]
[1644592644105,0.107302,43654.0,43650.0,0.1072941]
[1644592644304,0.107302,43654.0,43650.0,0.1079873]
[1644592645305,0.107302,43654.0,43650.0,0.1072941]
[1644592645504,0.107302,43654.0,43650.0,0.1079873]
[1644592646157,0.47894347,43654.0,43650.0,0.1079873]
[1644592646555,0.47894347,43654.0,43650.0,0.1072941]
[1644592646753,0.47894347,43654.0,43650.0,0.1079873]
[1644592647755,0.47894347,43654.0,43650.0,0.1072941]
[1644592647959,0.47894347,43654.0,43650.0,0.1079873]
[1644592648357,0.47894347,43654.0,43650.0,0.0579873]
[1644592648358,0.52894347,43654.0,43650.0,0.0579873]
[1644592648559,0.62894347,43654.0,43650.0,0.0006932]
[1644592648958,0.62894347,43654.0,43639.0,0.08439999]
[1644592649159,0.05,43648.0,43639.0,0.08439999]